[Event "Titled Tuesday Blitz August 1 Early 2023"]
[White "Ventura Bolet, Maxim"]
[Black "Howell, David W L"]
[WhiteFideId "22238824"]
[BlackFideId "410608"]
[WhiteElo "2373"]
[BlackElo "3025"]
[Result "0-1"]
[Round "11"]
[TimeControl "180+1"]
[Date "2023.08.01"]
[WhiteClock "0:00:00"]
[BlackClock "0:00:13"]
[Board "117"]

1. c4 {[%clk 0:03:00]}  a6 {[%clk 0:02:56]} 2. g3 {[%clk 0:02:58]}  c6 {[%clk 0:02:51]} 3. Bg2 {[%clk 0:02:57]}  d5 {[%clk 0:02:52]} 4. b3 {[%clk 0:02:56]}  e5 {[%clk 0:02:43]} 5. cxd5 {[%clk 0:02:44]}  cxd5 {[%clk 0:02:44]} 6. Bb2 {[%clk 0:02:41]}  Nc6 {[%clk 0:02:42]} 7. Nf3 {[%clk 0:02:37]}  Bd6 {[%clk 0:02:30]} 8. O-O {[%clk 0:02:31]}  Nge7 {[%clk 0:02:29]} 9. d4 {[%clk 0:02:31]}  e4 {[%clk 0:02:28]} 10. Ne5 {[%clk 0:02:31]}  Na7 {[%clk 0:02:05]} 11. f3 {[%clk 0:02:25]}  f6 {[%clk 0:02:03]} 12. fxe4 {[%clk 0:02:04]}  fxe5 {[%clk 0:02:01]} 13. dxe5 {[%clk 0:02:05]}  Bc5+ {[%clk 0:01:59]} 14. Kh1 {[%clk 0:02:05]}  d4 {[%clk 0:01:50]} 15. Na3 {[%clk 0:01:53]}  Nac6 {[%clk 0:01:39]} 16. Nc4 {[%clk 0:01:52]}  Be6 {[%clk 0:01:33]} 17. e3 {[%clk 0:01:45]}  Bxc4 {[%clk 0:00:52]} 18. bxc4 {[%clk 0:01:45]}  Ng6 {[%clk 0:00:43]} 19. exd4 {[%clk 0:01:38]}  Bxd4 {[%clk 0:00:42]} 20. Bxd4 {[%clk 0:00:54]}  Qxd4 {[%clk 0:00:42]} 21. Qg4 {[%clk 0:00:48]}  Qxe5 {[%clk 0:00:31]} 22. Rad1 {[%clk 0:00:46]}  Rd8 {[%clk 0:00:30]} 23. Rd5 {[%clk 0:00:31]}  Qe7 {[%clk 0:00:30]} 24. Rfd1 {[%clk 0:00:17]}  O-O {[%clk 0:00:28]} 25. h4 {[%clk 0:00:17]}  Nge5 {[%clk 0:00:26]} 26. Qe2 {[%clk 0:00:17]}  h6 {[%clk 0:00:24]} 27. Bh3 {[%clk 0:00:17]}  Kh8 {[%clk 0:00:24]} 28. Bf5 {[%clk 0:00:17]}  Qf7 {[%clk 0:00:19]} 29. Kg2 {[%clk 0:00:13]}  Rde8 {[%clk 0:00:17]} 30. Rd6 {[%clk 0:00:12]}  Re7 {[%clk 0:00:13]} 31. Qe3 {[%clk 0:00:12]}  Nxc4 {[%clk 0:00:13]} 32. Rxh6+ {[%clk 0:00:09]}  gxh6 {[%clk 0:00:14]} 33. Qxh6+ {[%clk 0:00:10]}  Kg8 {[%clk 0:00:14]} 34. Qg5+ {[%clk 0:00:07]}  Qg7 {[%clk 0:00:14]} 35. Qh5 {[%clk 0:00:08]}  Ne3+ {[%clk 0:00:14]} 36. Kh3 {[%clk 0:00:05]}  Nxd1 {[%clk 0:00:14]} 37. Bg4 {[%clk 0:00:00]}  Nf2+ {[%clk 0:00:13]} 0-1


[Site "https://www.chess.com"]

[Event "Titled Tuesday Blitz August 1 Early 2023"]
[White "Liu, Casper"]
[Black "Nithyalakshmi, Sivanesan"]
[WhiteFideId "1454153"]
[BlackFideId "5706955"]
[WhiteElo "2480"]
[BlackElo "2355"]
[Result "1-0"]
[Round "11"]
[TimeControl "180+1"]
[Date "2023.08.01"]
[WhiteClock "0:00:48"]
[BlackClock "0:00:49"]
[Board "120"]

1. e4 {[%clk 0:02:33]}  e6 {[%clk 0:02:59]} 2. d4 {[%clk 0:02:34]}  d5 {[%clk 0:02:59]} 3. h4 {[%clk 0:02:29]}  Nf6 {[%clk 0:02:52]} 4. h5 {[%clk 0:02:30]}  Nxe4 {[%clk 0:02:52]} 5. h6 {[%clk 0:02:30]}  g6 {[%clk 0:02:50]} 6. Bd3 {[%clk 0:02:30]}  Nf6 {[%clk 0:02:39]} 7. Bg5 {[%clk 0:02:30]}  Be7 {[%clk 0:02:39]} 8. Nf3 {[%clk 0:02:30]}  Nbd7 {[%clk 0:02:37]} 9. Nbd2 {[%clk 0:02:30]}  Ng4 {[%clk 0:02:34]} 10. Bf4 {[%clk 0:02:28]}  c5 {[%clk 0:02:32]} 11. c3 {[%clk 0:02:25]}  c4 {[%clk 0:02:28]} 12. Bc2 {[%clk 0:02:24]}  Qb6 {[%clk 0:02:25]} 13. b3 {[%clk 0:02:19]}  cxb3 {[%clk 0:02:21]} 14. axb3 {[%clk 0:02:20]}  Bd6 {[%clk 0:02:17]} 15. Bg5 {[%clk 0:02:09]}  Qc7 {[%clk 0:02:16]} 16. Rc1 {[%clk 0:01:43]}  Bf4 {[%clk 0:02:14]} 17. Rh3 {[%clk 0:01:35]}  Bxg5 {[%clk 0:02:10]} 18. Nxg5 {[%clk 0:01:36]}  Qf4 {[%clk 0:02:09]} 19. Ndf3 {[%clk 0:01:17]}  Nb6 {[%clk 0:01:53]} 20. Rh4 {[%clk 0:01:16]}  f5 {[%clk 0:01:46]} 21. g3 {[%clk 0:01:03]}  Qd6 {[%clk 0:01:34]} 22. Nxh7 {[%clk 0:01:02]}  Rxh7 {[%clk 0:01:33]} 23. Rxg4 {[%clk 0:00:59]}  Rxh6 {[%clk 0:01:28]} 24. Rh4 {[%clk 0:00:59]}  Rxh4 {[%clk 0:01:27]} 25. Nxh4 {[%clk 0:01:00]}  Kf7 {[%clk 0:01:23]} 26. Qd2 {[%clk 0:01:00]}  Qf8 {[%clk 0:01:20]} 27. Qg5 {[%clk 0:00:59]}  Qg7 {[%clk 0:01:18]} 28. Bd1 {[%clk 0:00:57]}  Bd7 {[%clk 0:01:14]} 29. Nxg6 {[%clk 0:00:57]}  Rg8 {[%clk 0:01:08]} 30. Bh5 {[%clk 0:00:48]}  Qf6 {[%clk 0:00:49]} 31. Ne5+ {[%clk 0:00:48]} 1-0


[Site "https://www.chess.com"]

[Event "Titled Tuesday Blitz August 1 Early 2023"]
[White "Kaminski, Victor"]
[Black "Ronka, Erik"]
[WhiteFideId "1131630"]
[BlackFideId "505080"]
[WhiteElo "2334"]
[BlackElo "2452"]
[Result "0-1"]
[Round "11"]
[TimeControl "180+1"]
[Date "2023.08.01"]
[WhiteClock "0:02:00"]
[BlackClock "0:02:25"]
[Board "123"]

1. e4 {[%clk 0:03:00]}  a6 {[%clk 0:02:41]} 2. Bc4 {[%clk 0:02:58]}  c5 {[%clk 0:02:42]} 3. Qf3 {[%clk 0:02:58]}  e6 {[%clk 0:02:41]} 4. Nh3 {[%clk 0:02:56]}  b5 {[%clk 0:02:39]} 5. Be2 {[%clk 0:02:57]}  Bb7 {[%clk 0:02:40]} 6. d3 {[%clk 0:02:57]}  Be7 {[%clk 0:02:37]} 7. O-O {[%clk 0:02:56]}  Nf6 {[%clk 0:02:37]} 8. Nc3 {[%clk 0:02:51]}  O-O {[%clk 0:02:37]} 9. Qg3 {[%clk 0:02:43]}  Kh8 {[%clk 0:02:30]} 10. Bf4 {[%clk 0:02:30]}  d6 {[%clk 0:02:28]} 11. e5 {[%clk 0:02:27]}  dxe5 {[%clk 0:02:27]} 12. Bxe5 {[%clk 0:02:28]}  Nc6 {[%clk 0:02:27]} 13. Bf4 {[%clk 0:02:20]}  Nd4 {[%clk 0:02:26]} 14. Bd1 {[%clk 0:02:17]}  Nf5 {[%clk 0:02:25]} 15. Qg5 {[%clk 0:02:00]}  h6 {[%clk 0:02:25]} 0-1


[Site "https://www.chess.com"]

[Event "Titled Tuesday Blitz August 1 Early 2023"]
[White "Alimpic, Aleksa"]
[Black "Fernandez Garcia, Gumersindo"]
[WhiteFideId "974323"]
[BlackFideId "24516740"]
[WhiteElo "2328"]
[BlackElo "2420"]
[Result "1/2-1/2"]
[Round "11"]
[TimeControl "180+1"]
[Date "2023.08.01"]
[WhiteClock "0:00:08"]
[BlackClock "0:01:16"]
[Board "124"]

1. d4 {[%clk 0:03:00]}  Nf6 {[%clk 0:02:59]} 2. Nf3 {[%clk 0:02:59]}  c5 {[%clk 0:02:58]} 3. c3 {[%clk 0:02:58]}  d5 {[%clk 0:02:57]} 4. Bg5 {[%clk 0:02:57]}  Nc6 {[%clk 0:02:54]} 5. e3 {[%clk 0:02:57]}  Qb6 {[%clk 0:02:51]} 6. Qb3 {[%clk 0:02:49]}  c4 {[%clk 0:02:50]} 7. Qc2 {[%clk 0:02:43]}  Bf5 {[%clk 0:02:48]} 8. Qc1 {[%clk 0:02:43]}  h6 {[%clk 0:02:43]} 9. Bxf6 {[%clk 0:02:37]}  exf6 {[%clk 0:02:42]} 10. Nbd2 {[%clk 0:02:38]}  Bd6 {[%clk 0:02:39]} 11. Be2 {[%clk 0:02:37]}  O-O {[%clk 0:02:39]} 12. O-O {[%clk 0:02:38]}  Rfe8 {[%clk 0:02:39]} 13. Re1 {[%clk 0:02:36]}  Qc7 {[%clk 0:02:39]} 14. Bd1 {[%clk 0:02:25]}  b5 {[%clk 0:02:39]} 15. Bc2 {[%clk 0:02:19]}  Bxc2 {[%clk 0:02:37]} 16. Qxc2 {[%clk 0:02:20]}  g6 {[%clk 0:02:37]} 17. e4 {[%clk 0:02:19]}  Ne7 {[%clk 0:02:25]} 18. h4 {[%clk 0:02:10]}  h5 {[%clk 0:02:18]} 19. Re2 {[%clk 0:01:53]}  Bf4 {[%clk 0:02:15]} 20. Rae1 {[%clk 0:01:50]}  Bxd2 {[%clk 0:02:09]} 21. Nxd2 {[%clk 0:01:35]}  Qd7 {[%clk 0:02:10]} 22. exd5 {[%clk 0:01:23]}  Nxd5 {[%clk 0:02:11]} 23. Rxe8+ {[%clk 0:01:22]}  Rxe8 {[%clk 0:02:10]} 24. Rxe8+ {[%clk 0:01:23]}  Qxe8 {[%clk 0:02:11]} 25. Qe4 {[%clk 0:01:24]}  Qxe4 {[%clk 0:02:09]} 26. Nxe4 {[%clk 0:01:25]}  b4 {[%clk 0:02:07]} 27. cxb4 {[%clk 0:01:17]}  Nxb4 {[%clk 0:02:07]} 28. Nc3 {[%clk 0:01:15]}  Nd3 {[%clk 0:02:03]} 29. b3 {[%clk 0:01:14]}  cxb3 {[%clk 0:01:56]} 30. axb3 {[%clk 0:01:15]}  Kf8 {[%clk 0:01:56]} 31. Kf1 {[%clk 0:00:54]}  Ke7 {[%clk 0:01:53]} 32. f3 {[%clk 0:00:35]}  a6 {[%clk 0:01:51]} 33. Ne4 {[%clk 0:00:26]}  a5 {[%clk 0:01:48]} 34. Nc5 {[%clk 0:00:23]}  Nc1 {[%clk 0:01:48]} 35. Ke1 {[%clk 0:00:21]}  Kd6 {[%clk 0:01:42]} 36. Kd2 {[%clk 0:00:21]}  Na2 {[%clk 0:01:41]} 37. Kd3 {[%clk 0:00:21]}  Kd5 {[%clk 0:01:41]} 38. Nb7 {[%clk 0:00:18]}  Nb4+ {[%clk 0:01:40]} 39. Kc3 {[%clk 0:00:18]}  Nc6 {[%clk 0:01:40]} 40. Kd3 {[%clk 0:00:15]}  f5 {[%clk 0:01:39]} 41. g3 {[%clk 0:00:15]}  f6 {[%clk 0:01:38]} 42. f4 {[%clk 0:00:11]}  Nb4+ {[%clk 0:01:28]} 43. Kc3 {[%clk 0:00:11]}  Nc6 {[%clk 0:01:27]} 44. Kd3 {[%clk 0:00:12]}  Nxd4 {[%clk 0:01:19]} 45. Nxa5 {[%clk 0:00:11]}  Ne6 {[%clk 0:01:19]} 46. Nc4 {[%clk 0:00:11]}  g5 {[%clk 0:01:20]} 47. Ne3+ {[%clk 0:00:11]}  Kc5 {[%clk 0:01:20]} 48. fxg5 {[%clk 0:00:11]}  fxg5 {[%clk 0:01:20]} 49. Nxf5 {[%clk 0:00:11]}  gxh4 {[%clk 0:01:19]} 50. gxh4 {[%clk 0:00:12]}  Kb4 {[%clk 0:01:19]} 51. Kc2 {[%clk 0:00:12]}  Nc5 {[%clk 0:01:16]} 52. Ng3 {[%clk 0:00:08]}  Nxb3 {[%clk 0:01:16]} 53. Nxh5 {[%clk 0:00:09]}  Nd4+ {[%clk 0:01:16]} 54. Kd3 {[%clk 0:00:08]}  Nf5 {[%clk 0:01:16]} 55. Nf4 {[%clk 0:00:08]}  Nxh4 {[%clk 0:01:16]} 1/2-1/2


[Site "https://www.chess.com"]

[Event "Titled Tuesday Blitz August 1 Early 2023"]
[White "Antonio, Jorge Carlos"]
[Black "Harriott, Tyrell"]
[WhiteFideId "113190"]
[BlackFideId "2086484"]
[WhiteElo "2325"]
[BlackElo "2418"]
[Result "0-1"]
[Round "11"]
[TimeControl "180+1"]
[Date "2023.08.01"]
[WhiteClock "0:02:05"]
[BlackClock "0:02:15"]
[Board "125"]

1. d4 {[%clk 0:03:00]}  e6 {[%clk 0:02:49]} 2. Nf3 {[%clk 0:03:00]}  d5 {[%clk 0:02:49]} 3. Bf4 {[%clk 0:02:59]}  Ne7 {[%clk 0:02:46]} 4. e3 {[%clk 0:02:59]}  Ng6 {[%clk 0:02:46]} 5. Bg3 {[%clk 0:02:59]}  Be7 {[%clk 0:02:47]} 6. h4 {[%clk 0:02:57]}  O-O {[%clk 0:02:46]} 7. h5 {[%clk 0:02:57]}  Nh8 {[%clk 0:02:46]} 8. Bd3 {[%clk 0:02:56]}  f5 {[%clk 0:02:47]} 9. Ne5 {[%clk 0:02:55]}  Nd7 {[%clk 0:02:41]} 10. Nxd7 {[%clk 0:02:54]}  Bxd7 {[%clk 0:02:41]} 11. Be5 {[%clk 0:02:54]}  Nf7 {[%clk 0:02:40]} 12. f4 {[%clk 0:02:46]}  Bh4+ {[%clk 0:02:39]} 13. Kf1 {[%clk 0:02:44]}  Nxe5 {[%clk 0:02:38]} 14. dxe5 {[%clk 0:02:43]}  c5 {[%clk 0:02:33]} 15. c3 {[%clk 0:02:42]}  Bc6 {[%clk 0:02:31]} 16. Rg1 {[%clk 0:02:29]}  Bg3 {[%clk 0:02:24]} 17. Qf3 {[%clk 0:02:25]}  Qh4 {[%clk 0:02:22]} 18. Qe2 {[%clk 0:02:19]}  d4 {[%clk 0:02:17]} 19. exd4 {[%clk 0:02:05]}  Qxf4+ {[%clk 0:02:15]} 0-1


[Site "https://www.chess.com"]

[Event "Titled Tuesday Blitz August 1 Early 2023"]
[White "FREDERICKtheMATE"]
[Black "Viskelis, Darius"]
[BlackFideId "12800830"]
[WhiteElo "2415"]
[BlackElo "2321"]
[Result "1-0"]
[Round "11"]
[TimeControl "180+1"]
[Date "2023.08.01"]
[WhiteClock "0:01:41"]
[BlackClock "0:00:13"]
[Board "126"]

1. Nf3 {[%clk 0:02:57]}  Nf6 {[%clk 0:02:58]} 2. g3 {[%clk 0:02:58]}  g6 {[%clk 0:02:58]} 3. Bg2 {[%clk 0:02:58]}  Bg7 {[%clk 0:02:59]} 4. O-O {[%clk 0:02:59]}  O-O {[%clk 0:02:59]} 5. d4 {[%clk 0:03:00]}  d6 {[%clk 0:02:59]} 6. c4 {[%clk 0:03:00]}  Nc6 {[%clk 0:02:54]} 7. Nc3 {[%clk 0:03:01]}  e5 {[%clk 0:02:54]} 8. d5 {[%clk 0:03:00]}  Ne7 {[%clk 0:02:53]} 9. e4 {[%clk 0:02:59]}  c5 {[%clk 0:02:52]} 10. Ne1 {[%clk 0:02:55]}  Nh5 {[%clk 0:02:49]} 11. Nd3 {[%clk 0:02:54]}  f5 {[%clk 0:02:46]} 12. exf5 {[%clk 0:02:51]}  Bxf5 {[%clk 0:02:43]} 13. Be3 {[%clk 0:02:46]}  e4 {[%clk 0:02:28]} 14. Nxe4 {[%clk 0:02:43]}  Bxb2 {[%clk 0:02:18]} 15. Nxb2 {[%clk 0:02:41]}  Qd7 {[%clk 0:02:11]} 16. Ng5 {[%clk 0:02:37]}  Bg4 {[%clk 0:02:07]} 17. f3 {[%clk 0:02:36]}  Bf5 {[%clk 0:02:01]} 18. g4 {[%clk 0:02:35]}  h6 {[%clk 0:02:02]} 19. Nh3 {[%clk 0:02:33]}  Rae8 {[%clk 0:01:54]} 20. gxf5 {[%clk 0:02:31]}  Nxf5 {[%clk 0:01:54]} 21. Bf2 {[%clk 0:02:29]}  Qg7 {[%clk 0:01:54]} 22. Nd3 {[%clk 0:02:25]}  Ne3 {[%clk 0:01:53]} 23. Bxe3 {[%clk 0:02:24]}  Rxe3 {[%clk 0:01:54]} 24. Ndf2 {[%clk 0:02:18]}  Rfe8 {[%clk 0:01:40]} 25. Ne4 {[%clk 0:02:13]}  g5 {[%clk 0:01:38]} 26. Qd2 {[%clk 0:02:03]}  Ra3 {[%clk 0:01:07]} 27. Rab1 {[%clk 0:02:02]}  b6 {[%clk 0:00:43]} 28. Qb2 {[%clk 0:01:58]}  Qd4+ {[%clk 0:00:30]} 29. Qxd4 {[%clk 0:01:57]}  cxd4 {[%clk 0:00:31]} 30. Rf2 {[%clk 0:01:51]}  Ng7 {[%clk 0:00:26]} 31. Nf6+ {[%clk 0:01:50]}  Kf7 {[%clk 0:00:25]} 32. Nxe8 {[%clk 0:01:51]}  Kxe8 {[%clk 0:00:25]} 33. Rb3 {[%clk 0:01:50]}  Ra4 {[%clk 0:00:24]} 34. Bf1 {[%clk 0:01:49]}  Nf5 {[%clk 0:00:23]} 35. Rd2 {[%clk 0:01:47]}  Kf7 {[%clk 0:00:21]} 36. Nf2 {[%clk 0:01:44]}  Kg6 {[%clk 0:00:19]} 37. Bd3 {[%clk 0:01:42]}  Kf6 {[%clk 0:00:13]} 38. Ng4+ {[%clk 0:01:41]} 1-0


[Site "https://www.chess.com"]

[Event "Titled Tuesday Blitz August 1 Early 2023"]
[White "Zaksaite, Salomeja"]
[Black "Diaz Herquinio, Brahian"]
[WhiteFideId "12801496"]
[BlackFideId "3809480"]
[WhiteElo "2300"]
[BlackElo "2405"]
[Result "1-0"]
[Round "11"]
[TimeControl "180+1"]
[Date "2023.08.01"]
[WhiteClock "0:00:04"]
[BlackClock "0:00:00"]
[Board "128"]

1. e4 {[%clk 0:02:32]}  c5 {[%clk 0:02:59]} 2. Nf3 {[%clk 0:02:31]}  d6 {[%clk 0:03:00]} 3. d4 {[%clk 0:02:30]}  cxd4 {[%clk 0:03:00]} 4. Nxd4 {[%clk 0:02:30]}  Nf6 {[%clk 0:03:01]} 5. Nc3 {[%clk 0:02:30]}  a6 {[%clk 0:03:01]} 6. Bc4 {[%clk 0:02:30]}  e6 {[%clk 0:03:01]} 7. Bb3 {[%clk 0:02:30]}  Nbd7 {[%clk 0:03:01]} 8. O-O {[%clk 0:02:29]}  Nc5 {[%clk 0:03:01]} 9. f3 {[%clk 0:02:26]}  Be7 {[%clk 0:02:59]} 10. Be3 {[%clk 0:02:26]}  O-O {[%clk 0:02:59]} 11. Qe1 {[%clk 0:02:27]}  Bd7 {[%clk 0:02:50]} 12. Rd1 {[%clk 0:02:27]}  Rc8 {[%clk 0:02:47]} 13. Qg3 {[%clk 0:02:26]}  Kh8 {[%clk 0:02:35]} 14. Kh1 {[%clk 0:02:25]}  b5 {[%clk 0:02:32]} 15. e5 {[%clk 0:02:19]}  dxe5 {[%clk 0:02:21]} 16. Qxe5 {[%clk 0:02:12]}  Qc7 {[%clk 0:02:14]} 17. Qxc7 {[%clk 0:02:01]}  Rxc7 {[%clk 0:02:14]} 18. Bf4 {[%clk 0:02:01]}  Rcc8 {[%clk 0:02:05]} 19. Be5 {[%clk 0:01:59]}  Rfd8 {[%clk 0:02:02]} 20. Rd2 {[%clk 0:01:58]}  b4 {[%clk 0:01:56]} 21. Nb1 {[%clk 0:01:56]}  a5 {[%clk 0:01:47]} 22. Rfd1 {[%clk 0:01:50]}  Be8 {[%clk 0:01:40]} 23. c3 {[%clk 0:01:42]}  a4 {[%clk 0:01:29]} 24. Bc2 {[%clk 0:01:41]}  Ncd7 {[%clk 0:01:20]} 25. Bg3 {[%clk 0:01:26]}  bxc3 {[%clk 0:01:03]} 26. bxc3 {[%clk 0:01:19]}  Nb6 {[%clk 0:00:59]} 27. Bd3 {[%clk 0:01:05]}  Nfd5 {[%clk 0:00:49]} 28. Ne2 {[%clk 0:00:50]}  Ne3 {[%clk 0:00:40]} 29. Re1 {[%clk 0:00:46]}  Nec4 {[%clk 0:00:36]} 30. Rc2 {[%clk 0:00:42]}  Ne3 {[%clk 0:00:35]} 31. Rd2 {[%clk 0:00:42]}  Nbc4 {[%clk 0:00:35]} 32. Bxc4 {[%clk 0:00:39]}  Nxc4 {[%clk 0:00:33]} 33. Rc2 {[%clk 0:00:31]}  a3 {[%clk 0:00:33]} 34. Nd4 {[%clk 0:00:27]}  Bf6 {[%clk 0:00:26]} 35. Nb3 {[%clk 0:00:25]}  Ba4 {[%clk 0:00:24]} 36. Kg1 {[%clk 0:00:18]}  Rd3 {[%clk 0:00:22]} 37. Rec1 {[%clk 0:00:15]}  Rcd8 {[%clk 0:00:21]} 38. Kf1 {[%clk 0:00:15]}  Ne3+ {[%clk 0:00:20]} 39. Ke2 {[%clk 0:00:14]}  Nxc2 {[%clk 0:00:20]} 40. Rxc2 {[%clk 0:00:14]}  Rd1 {[%clk 0:00:20]} 41. Nxa3 {[%clk 0:00:13]}  R1d3 {[%clk 0:00:17]} 42. Bc7 {[%clk 0:00:06]}  R8d7 {[%clk 0:00:13]} 43. Ba5 {[%clk 0:00:03]}  R3d5 {[%clk 0:00:11]} 44. Rb2 {[%clk 0:00:02]}  h5 {[%clk 0:00:06]} 45. Bb4 {[%clk 0:00:03]}  Bb5+ {[%clk 0:00:06]} 46. Ke3 {[%clk 0:00:02]}  Ba4 {[%clk 0:00:06]} 47. Nc5 {[%clk 0:00:02]}  Rc7 {[%clk 0:00:04]} 48. Nxa4 {[%clk 0:00:02]}  Bg5+ {[%clk 0:00:04]} 49. f4 {[%clk 0:00:02]}  Bf6 {[%clk 0:00:04]} 50. Nb6 {[%clk 0:00:03]}  Rd8 {[%clk 0:00:03]} 51. Nac4 {[%clk 0:00:03]}  g5 {[%clk 0:00:03]} 52. a4 {[%clk 0:00:03]}  gxf4+ {[%clk 0:00:03]} 53. Kxf4 {[%clk 0:00:04]}  Kg7 {[%clk 0:00:03]} 54. a5 {[%clk 0:00:04]}  Rb8 {[%clk 0:00:01]} 55. a6 {[%clk 0:00:04]}  Bd8 {[%clk 0:00:01]} 56. Ra2 {[%clk 0:00:04]}  Ra7 {[%clk 0:00:00]} 57. Bc5 {[%clk 0:00:04]} 1-0


[Site "https://www.chess.com"]

[Event "Titled Tuesday Blitz August 1 Early 2023"]
[White "alfianasybullina"]
[Black "Bueno, Alfeu Junior Varela"]
[BlackFideId "2108879"]
[WhiteElo "2242"]
[BlackElo "2389"]
[Result "1-0"]
[Round "11"]
[TimeControl "180+1"]
[Date "2023.08.01"]
[WhiteClock "0:00:22"]
[BlackClock "0:00:02"]
[Board "131"]

1. Nf3 {[%clk 0:02:56]}  e6 {[%clk 0:02:59]} 2. g3 {[%clk 0:02:56]}  f5 {[%clk 0:03:00]} 3. d4 {[%clk 0:02:56]}  b6 {[%clk 0:03:00]} 4. Bg2 {[%clk 0:02:55]}  Bb7 {[%clk 0:03:01]} 5. O-O {[%clk 0:02:55]}  Nf6 {[%clk 0:03:02]} 6. c4 {[%clk 0:02:55]}  Be7 {[%clk 0:03:02]} 7. Nc3 {[%clk 0:02:55]}  Ne4 {[%clk 0:03:02]} 8. Nxe4 {[%clk 0:02:54]}  Bxe4 {[%clk 0:03:01]} 9. Ne5 {[%clk 0:02:51]}  Bxg2 {[%clk 0:03:01]} 10. Kxg2 {[%clk 0:02:52]}  O-O {[%clk 0:03:01]} 11. h4 {[%clk 0:02:49]}  d6 {[%clk 0:02:56]} 12. Nf3 {[%clk 0:02:45]}  Nd7 {[%clk 0:02:56]} 13. Bg5 {[%clk 0:02:44]}  Bf6 {[%clk 0:02:56]} 14. e3 {[%clk 0:02:41]}  Qe8 {[%clk 0:02:56]} 15. Qc2 {[%clk 0:02:36]}  e5 {[%clk 0:02:54]} 16. Bxf6 {[%clk 0:02:29]}  Rxf6 {[%clk 0:02:51]} 17. dxe5 {[%clk 0:02:17]}  dxe5 {[%clk 0:02:52]} 18. e4 {[%clk 0:02:10]}  f4 {[%clk 0:02:52]} 19. Rad1 {[%clk 0:02:02]}  Nc5 {[%clk 0:02:49]} 20. Rd5 {[%clk 0:02:00]}  Qg6 {[%clk 0:02:27]} 21. Rxe5 {[%clk 0:01:23]}  Raf8 {[%clk 0:02:17]} 22. b4 {[%clk 0:01:13]}  Ne6 {[%clk 0:01:48]} 23. Rf5 {[%clk 0:00:45]}  Rxf5 {[%clk 0:01:36]} 24. exf5 {[%clk 0:00:46]}  Rxf5 {[%clk 0:01:35]} 25. Qe4 {[%clk 0:00:31]}  fxg3 {[%clk 0:00:58]} 26. fxg3 {[%clk 0:00:32]}  Qf6 {[%clk 0:00:58]} 27. Nd2 {[%clk 0:00:29]}  Rxf1 {[%clk 0:00:44]} 28. Nxf1 {[%clk 0:00:30]}  Nd4 {[%clk 0:00:31]} 29. Ne3 {[%clk 0:00:29]}  c6 {[%clk 0:00:28]} 30. Qe8+ {[%clk 0:00:28]}  Qf8 {[%clk 0:00:24]} 31. Qe4 {[%clk 0:00:28]}  Qd6 {[%clk 0:00:21]} 32. Ng4 {[%clk 0:00:24]}  h6 {[%clk 0:00:13]} 33. Ne5 {[%clk 0:00:23]}  c5 {[%clk 0:00:12]} 34. bxc5 {[%clk 0:00:23]}  Qxc5 {[%clk 0:00:12]} 35. Qd5+ {[%clk 0:00:20]}  Qxd5+ {[%clk 0:00:12]} 36. cxd5 {[%clk 0:00:21]}  Kf8 {[%clk 0:00:12]} 37. Kf2 {[%clk 0:00:21]}  Ke7 {[%clk 0:00:10]} 38. Ke3 {[%clk 0:00:21]}  Nf5+ {[%clk 0:00:10]} 39. Kf4 {[%clk 0:00:22]}  Nd6 {[%clk 0:00:10]} 40. Nc6+ {[%clk 0:00:22]}  Kd7 {[%clk 0:00:10]} 41. Nxa7 {[%clk 0:00:22]}  b5 {[%clk 0:00:06]} 42. Nc6 {[%clk 0:00:22]}  Nc4 {[%clk 0:00:02]} 43. Ne5+ {[%clk 0:00:21]}  Kd6 {[%clk 0:00:02]} 44. Nxc4+ {[%clk 0:00:21]}  bxc4 {[%clk 0:00:03]} 45. Ke4 {[%clk 0:00:21]}  g5 {[%clk 0:00:03]} 46. hxg5 {[%clk 0:00:20]}  hxg5 {[%clk 0:00:04]} 47. Kd4 {[%clk 0:00:21]}  c3 {[%clk 0:00:04]} 48. Kxc3 {[%clk 0:00:21]}  Kxd5 {[%clk 0:00:05]} 49. a4 {[%clk 0:00:21]}  Ke4 {[%clk 0:00:02]} 50. a5 {[%clk 0:00:21]}  Kf3 {[%clk 0:00:03]} 51. a6 {[%clk 0:00:22]}  Kxg3 {[%clk 0:00:02]} 52. a7 {[%clk 0:00:22]} 1-0


[Site "https://www.chess.com"]

[Event "Titled Tuesday Blitz August 1 Early 2023"]
[White "Spichkin, Alexander"]
[Black "Feliz Dotel, Dewar Bienvenido"]
[WhiteFideId "4144074"]
[BlackFideId "6402801"]
[WhiteElo "2384"]
[BlackElo "2153"]
[Result "1-0"]
[Round "11"]
[TimeControl "180+1"]
[Date "2023.08.01"]
[WhiteClock "0:00:40"]
[BlackClock "0:00:40"]
[Board "133"]

1. f4 {[%clk 0:01:50]}  d5 {[%clk 0:02:57]} 2. Nf3 {[%clk 0:01:49]}  c5 {[%clk 0:02:56]} 3. e3 {[%clk 0:01:49]}  Bg4 {[%clk 0:02:55]} 4. h3 {[%clk 0:01:49]}  Bxf3 {[%clk 0:02:54]} 5. Qxf3 {[%clk 0:01:49]}  e6 {[%clk 0:02:54]} 6. b3 {[%clk 0:01:49]}  Be7 {[%clk 0:02:52]} 7. Bb2 {[%clk 0:01:49]}  Bf6 {[%clk 0:02:51]} 8. Nc3 {[%clk 0:01:50]}  Nc6 {[%clk 0:02:48]} 9. O-O-O {[%clk 0:01:50]}  b5 {[%clk 0:02:40]} 10. Bxb5 {[%clk 0:01:48]}  Qb6 {[%clk 0:02:33]} 11. g4 {[%clk 0:01:36]}  Ne7 {[%clk 0:02:06]} 12. g5 {[%clk 0:01:35]}  Bxc3 {[%clk 0:02:05]} 13. Bxc6+ {[%clk 0:01:35]}  Nxc6 {[%clk 0:02:02]} 14. Bxc3 {[%clk 0:01:36]}  O-O {[%clk 0:01:45]} 15. h4 {[%clk 0:01:28]}  d4 {[%clk 0:01:45]} 16. Bb2 {[%clk 0:01:26]}  a5 {[%clk 0:01:44]} 17. a4 {[%clk 0:01:26]}  c4 {[%clk 0:01:42]} 18. exd4 {[%clk 0:01:24]}  cxb3 {[%clk 0:01:42]} 19. Qxb3 {[%clk 0:01:22]}  Qxb3 {[%clk 0:01:36]} 20. cxb3 {[%clk 0:01:23]}  Rab8 {[%clk 0:01:36]} 21. Rh3 {[%clk 0:01:18]}  Rfc8 {[%clk 0:01:33]} 22. Kb1 {[%clk 0:01:18]}  Nb4 {[%clk 0:01:33]} 23. Bc3 {[%clk 0:01:07]}  Nd5 {[%clk 0:01:28]} 24. Bxa5 {[%clk 0:01:05]}  Ra8 {[%clk 0:01:28]} 25. Bc3 {[%clk 0:01:04]}  Nxf4 {[%clk 0:01:26]} 26. Rf3 {[%clk 0:01:04]}  Nd5 {[%clk 0:01:21]} 27. Rdf1 {[%clk 0:01:02]}  f6 {[%clk 0:01:14]} 28. gxf6 {[%clk 0:00:59]}  gxf6 {[%clk 0:01:15]} 29. Rxf6 {[%clk 0:00:58]}  Nxf6 {[%clk 0:01:14]} 30. Rxf6 {[%clk 0:00:59]}  Re8 {[%clk 0:01:10]} 31. h5 {[%clk 0:00:57]}  Rac8 {[%clk 0:01:05]} 32. h6 {[%clk 0:00:55]}  Rc7 {[%clk 0:01:05]} 33. b4 {[%clk 0:00:51]}  Rf7 {[%clk 0:01:04]} 34. Rxf7 {[%clk 0:00:48]}  Kxf7 {[%clk 0:01:05]} 35. Kb2 {[%clk 0:00:47]}  Kg6 {[%clk 0:01:05]} 36. b5 {[%clk 0:00:47]}  Kxh6 {[%clk 0:01:04]} 37. a5 {[%clk 0:00:48]}  Kg5 {[%clk 0:01:01]} 38. b6 {[%clk 0:00:48]}  h5 {[%clk 0:00:59]} 39. a6 {[%clk 0:00:48]}  Rb8 {[%clk 0:00:57]} 40. Ba5 {[%clk 0:00:46]}  h4 {[%clk 0:00:55]} 41. a7 {[%clk 0:00:44]}  Ra8 {[%clk 0:00:39]} 42. b7 {[%clk 0:00:38]}  Rxa7 {[%clk 0:00:39]} 43. b8=Q {[%clk 0:00:39]}  Rxa5 {[%clk 0:00:40]} 44. Qd8+ {[%clk 0:00:39]}  Kg4 {[%clk 0:00:40]} 45. Qxa5 {[%clk 0:00:39]}  h3 {[%clk 0:00:40]} 46. Qc7 {[%clk 0:00:39]}  h2 {[%clk 0:00:41]} 47. Qxh2 {[%clk 0:00:39]}  Kf3 {[%clk 0:00:41]} 48. Qe5 {[%clk 0:00:38]}  Kf2 {[%clk 0:00:41]} 49. Qxe6 {[%clk 0:00:38]}  Kf3 {[%clk 0:00:41]} 50. d5 {[%clk 0:00:39]}  Kf4 {[%clk 0:00:42]} 51. d6 {[%clk 0:00:39]}  Kf3 {[%clk 0:00:40]} 52. d7 {[%clk 0:00:40]} 1-0


[Site "https://www.chess.com"]